[Event "*** MasterClass Titled Tuesday Blitz"]
[Site "Chess.com"]
[Date "2017.12.05"]
[Round "10"]
[White "Gattass"]
[Black "aa175"]
[Result "1/2-1/2"]
[WhiteElo "2119"]
[BlackElo "1876"]
[TimeControl "180+2"]
[EndTime "16:30:49 PST"]
[Termination "Game drawn - insufficient material"]

1. e4 {[%clk 0:03:01.9]} 1... e5 {[%clk 0:03:00]} 2. Nf3 {[%clk 0:03:02.1]} 2...
Nc6 {[%clk 0:03:00.6]} 3. d4 {[%clk 0:03:02.9]} 3... exd4 {[%clk 0:02:59.4]} 4.
Nxd4 {[%clk 0:03:01.9]} 4... Bc5 {[%clk 0:02:56.1]} 5. Nxc6 {[%clk 0:03:02.5]}
5... dxc6 {[%clk 0:02:56.9]} 6. Qxd8+ {[%clk 0:03:03]} 6... Kxd8 {[%clk
0:02:58.3]} 7. Bf4 {[%clk 0:02:57.3]} 7... Ne7 {[%clk 0:02:52.4]} 8. Nd2 {[%clk
0:02:56]} 8... Be6 {[%clk 0:02:50]} 9. Bc4 {[%clk 0:02:51.3]} 9... Bb4 {[%clk
0:02:34.3]} 10. c3 {[%clk 0:02:51]} 10... Bd6 {[%clk 0:02:32.1]} 11. Be3 {[%clk
0:02:44.3]} 11... b6 {[%clk 0:02:24.2]} 12. O-O-O {[%clk 0:02:37.4]} 12... Kc8
{[%clk 0:02:15.7]} 13. Bxe6+ {[%clk 0:02:27.9]} 13... fxe6 {[%clk 0:02:15.7]}
14. Nc4 {[%clk 0:02:27.4]} 14... Rd8 {[%clk 0:02:13.1]} 15. e5 {[%clk 0:02:25]}
15... Bc5 {[%clk 0:02:11.6]} 16. Bxc5 {[%clk 0:02:25]} 16... bxc5 {[%clk
0:02:12.5]} 17. Rxd8+ {[%clk 0:02:24.1]} 17... Kxd8 {[%clk 0:02:14.4]} 18. Rd1+
{[%clk 0:02:23.6]} 18... Ke8 {[%clk 0:02:06.5]} 19. f4 {[%clk 0:02:21.6]} 19...
Nf5 {[%clk 0:02:03.5]} 20. Na5 {[%clk 0:02:20.4]} 20... Ne3 {[%clk 0:01:58.3]}
21. Rd2 {[%clk 0:02:11.9]} 21... Rd8 {[%clk 0:01:23.4]} 22. Rxd8+ {[%clk
0:02:06.9]} 22... Kxd8 {[%clk 0:01:24]} 23. Nxc6+ {[%clk 0:02:02.4]} 23... Kd7
{[%clk 0:01:17.3]} 24. Nxa7 {[%clk 0:01:29.6]} 24... Nxg2 {[%clk 0:01:17]} 25.
a4 {[%clk 0:01:25]} 25... Nxf4 {[%clk 0:01:16.1]} 26. Kd2 {[%clk 0:01:15.5]}
26... Ng6 {[%clk 0:01:15.4]} 27. b4 {[%clk 0:01:10.9]} 27... cxb4 {[%clk
0:01:15.7]} 28. cxb4 {[%clk 0:01:12.8]} 28... Nxe5 {[%clk 0:01:17.5]} 29. b5
{[%clk 0:01:13]} 29... g5 {[%clk 0:01:08.6]} 30. a5 {[%clk 0:01:09.7]} 30...
Nc4+ {[%clk 0:01:01.6]} 31. Kd3 {[%clk 0:01:07.8]} 31... Nxa5 {[%clk 0:01:03.5]}
32. Ke4 {[%clk 0:01:07.2]} 32... Nc4 {[%clk 0:00:58.3]} 33. Nc6 {[%clk
0:01:04.8]} 33... Nd6+ {[%clk 0:00:58.7]} 34. Ke5 {[%clk 0:01:02.8]} 34... Nxb5
{[%clk 0:00:59.2]} 35. Nb8+ {[%clk 0:01:03.3]} 35... Kc8 {[%clk 0:01:00]} 36.
Nc6 {[%clk 0:01:03.3]} 36... Kd7 {[%clk 0:00:58.9]} 37. Nb8+ {[%clk 0:01:04.1]}
37... Ke7 {[%clk 0:00:59.5]} 38. Nc6+ {[%clk 0:01:04.5]} 38... Kf7 {[%clk
0:01:00.1]} 39. Nd8+ {[%clk 0:01:05.7]} 39... Kg6 {[%clk 0:01:00.6]} 40. Nxe6
{[%clk 0:01:06.7]} 40... c6 {[%clk 0:00:57.4]} 41. Nd8 {[%clk 0:01:05.1]} 41...
Na7 {[%clk 0:00:51.8]} 42. Ne6 {[%clk 0:01:04.8]} 42... h5 {[%clk 0:00:50.6]}
43. Nf8+ {[%clk 0:01:06.1]} 43... Kh6 {[%clk 0:00:45.5]} 44. Nd7 {[%clk
0:01:06.5]} 44... h4 {[%clk 0:00:37.1]} 45. Kf5 {[%clk 0:01:06.9]} 45... Nb5
{[%clk 0:00:35]} 46. Ne5 {[%clk 0:01:02.7]} 46... Nd4+ {[%clk 0:00:27.1]} 47.
Kg4 {[%clk 0:01:03.4]} 47... c5 {[%clk 0:00:19.8]} 48. Nf7+ {[%clk 0:01:04]}
48... Kg6 {[%clk 0:00:21.2]} 49. Nxg5 {[%clk 0:01:04.3]} 49... c4 {[%clk
0:00:22.6]} 50. Ne4 {[%clk 0:01:05.2]} 50... Nf5 {[%clk 0:00:23.1]} 51. h3
{[%clk 0:01:02.5]} 51... Ng3 {[%clk 0:00:12.3]} 52. Nc3 {[%clk 0:01:00.8]} 52...
Nf5 {[%clk 0:00:11]} 53. Nd5 {[%clk 0:01:01.7]} 53... Nd6 {[%clk 0:00:03.3]} 54.
Kxh4 {[%clk 0:01:02.7]} 54... Ne4 {[%clk 0:00:04.4]} 55. Nf4+ {[%clk 0:00:46.7]}
55... Kf5 {[%clk 0:00:03.8]} 56. Ne2 {[%clk 0:00:47.3]} 56... Nd2 {[%clk
0:00:02.7]} 57. Kh5 {[%clk 0:00:47.4]} 57... Nf3 {[%clk 0:00:03.3]} 58. Kh6
{[%clk 0:00:42.9]} 58... Kf6 {[%clk 0:00:04.8]} 59. Nf4 {[%clk 0:00:41.2]} 59...
c3 {[%clk 0:00:05.6]} 60. Nd5+ {[%clk 0:00:42.2]} 60... Kf5 {[%clk 0:00:06.9]}
61. Nxc3 {[%clk 0:00:43.4]} 61... Kf4 {[%clk 0:00:07.7]} 62. Ne2+ {[%clk
0:00:44.7]} 62... Ke3 {[%clk 0:00:08]} 63. Ng3 {[%clk 0:00:45.6]} 63... Kf2
{[%clk 0:00:05]} 64. Nf5 {[%clk 0:00:43]} 64... Kg2 {[%clk 0:00:05.7]} 65. h4
{[%clk 0:00:42.6]} 65... Nxh4 {[%clk 0:00:02.1]} 66. Nxh4+ {[%clk 0:00:44.5]}
1/2-1/2

[Event "*** MasterClass Titled Tuesday Blitz"]
[Site "Chess.com"]
[Date "2017.12.05"]
[Round "10"]
[White "Colombiano07"]
[Black "DiogenesSinopeus"]
[Result "1-0"]
[WhiteElo "2212"]
[BlackElo "2344"]
[TimeControl "180+2"]
[EndTime "16:31:46 PST"]
[Termination "Colombiano07 won by resignation"]

1. e4 {[%clk 0:03:01.9]} 1... c5 {[%clk 0:03:00.8]} 2. Nc3 {[%clk 0:03:02.3]}
2... Nc6 {[%clk 0:03:02]} 3. Bb5 {[%clk 0:03:02.9]} 3... Nd4 {[%clk 0:03:00.5]}
4. Nf3 {[%clk 0:03:03.7]} 4... e6 {[%clk 0:02:57.1]} 5. Nxd4 {[%clk 0:03:03.5]}
5... cxd4 {[%clk 0:02:56.8]} 6. Ne2 {[%clk 0:03:05.1]} 6... Qb6 {[%clk
0:02:47.7]} 7. Bd3 {[%clk 0:03:02.8]} 7... Ne7 {[%clk 0:02:41.9]} 8. O-O {[%clk
0:03:02.7]} 8... Nc6 {[%clk 0:02:43]} 9. c3 {[%clk 0:03:01.9]} 9... Be7 {[%clk
0:02:36.3]} 10. Qa4 {[%clk 0:02:47.9]} 10... Ne5 {[%clk 0:02:23.1]} 11. Bb1
{[%clk 0:02:44.7]} 11... dxc3 {[%clk 0:01:46.3]} 12. bxc3 {[%clk 0:02:46.6]}
12... O-O {[%clk 0:01:44.6]} 13. d4 {[%clk 0:02:46.6]} 13... Ng6 {[%clk
0:01:41.2]} 14. Be3 {[%clk 0:02:41.2]} 14... Qc7 {[%clk 0:01:34.9]} 15. Bd3
{[%clk 0:02:38]} 15... b6 {[%clk 0:01:34]} 16. f3 {[%clk 0:02:34.2]} 16... Bb7
{[%clk 0:01:33.8]} 17. c4 {[%clk 0:02:35.4]} 17... d6 {[%clk 0:01:30]} 18. Rac1
{[%clk 0:02:34.2]} 18... Rfd8 {[%clk 0:01:22.2]} 19. Rfd1 {[%clk 0:02:17.9]}
19... Nf8 {[%clk 0:01:22.9]} 20. Qb5 {[%clk 0:02:12.9]} 20... Nd7 {[%clk
0:01:15.3]} 21. Qh5 {[%clk 0:02:11.7]} 21... Nf6 {[%clk 0:01:12.9]} 22. Qh3
{[%clk 0:02:12]} 22... e5 {[%clk 0:00:58.2]} 23. Ng3 {[%clk 0:02:04.7]} 23...
Bc8 {[%clk 0:00:41.5]} 24. Nf5 {[%clk 0:02:05.3]} 24... Bxf5 {[%clk 0:00:40.5]}
25. Qxf5 {[%clk 0:02:05.3]} 25... Qc8 {[%clk 0:00:40.9]} 26. Qg5 {[%clk
0:01:45.9]} 26... Qe6 {[%clk 0:00:14]} 27. d5 {[%clk 0:01:34.7]} 27... Qc8
{[%clk 0:00:09.9]} 28. f4 {[%clk 0:01:34.8]} 28... Qd7 {[%clk 0:00:06.1]} 29.
fxe5 {[%clk 0:01:33.6]} 29... Nxd5 {[%clk 0:00:07.3]} 30. Qg3 {[%clk 0:01:30.5]}
30... Nxe3 {[%clk 0:00:07.6]} 31. Qxe3 {[%clk 0:01:32.4]} 31... dxe5 {[%clk
0:00:08.7]} 32. Kh1 {[%clk 0:01:12.9]} 32... Bc5 {[%clk 0:00:09.6]} 33. Qg3
{[%clk 0:01:12.7]} 33... Qe7 {[%clk 0:00:10.7]} 34. Be2 {[%clk 0:01:06]} 34...
Bd4 {[%clk 0:00:07.9]} 35. Bg4 {[%clk 0:01:04.3]} 35... Rd6 {[%clk 0:00:08.5]}
36. Rf1 {[%clk 0:01:04.1]} 36... Rad8 {[%clk 0:00:04.4]} 37. Bh5 {[%clk
0:01:04.2]} 37... Rf6 {[%clk 0:00:04.6]} 38. Rf3 {[%clk 0:01:01.3]} 38... g6
{[%clk 0:00:05.3]} 39. Qg5 {[%clk 0:00:50.3]} 39... Re6 {[%clk 0:00:04.1]} 40.
Qg3 {[%clk 0:00:40]} 40... Kh8 {[%clk 0:00:04.5]} 41. Rcf1 {[%clk 0:00:36.6]}
41... f5 {[%clk 0:00:02.9]} 42. exf5 {[%clk 0:00:35.1]} 42... e4 {[%clk
0:00:04.1]} 43. fxe6 {[%clk 0:00:32.8]} 43... exf3 {[%clk 0:00:05.1]} 44. Bxf3
{[%clk 0:00:31.4]} 44... Qxe6 {[%clk 0:00:06.2]} 45. Bd5 {[%clk 0:00:31.8]}
45... Qe7 {[%clk 0:00:07.4]} 46. h3 {[%clk 0:00:20.7]} 46... Be5 {[%clk
0:00:07.1]} 47. Qg4 {[%clk 0:00:19.9]} 47... Bg7 {[%clk 0:00:06.2]} 48. Qg3
{[%clk 0:00:17.7]} 48... Rf8 {[%clk 0:00:07.1]} 49. Re1 {[%clk 0:00:17.6]} 49...
Qc5 {[%clk 0:00:05.8]} 50. Qe3 {[%clk 0:00:17.8]} 50... Bd4 {[%clk 0:00:05.7]}
51. Qe7 {[%clk 0:00:17.6]} 51... Qxe7 {[%clk 0:00:05.8]} 52. Rxe7 {[%clk
0:00:17.3]} 52... Rf1+ {[%clk 0:00:06.5]} 53. Kh2 {[%clk 0:00:18.5]} 53... Bg1+
{[%clk 0:00:06.3]} 54. Kg3 {[%clk 0:00:19.6]} 54... a5 {[%clk 0:00:07.2]} 55.
Rb7 {[%clk 0:00:18.3]} 55... Ra1 {[%clk 0:00:05.3]} 56. h4 {[%clk 0:00:17.9]}
56... Bc5 {[%clk 0:00:02.6]} 57. h5 {[%clk 0:00:18.8]} 57... gxh5 {[%clk
0:00:03.2]} 58. Kh4 {[%clk 0:00:16.3]} 58... Rxa2 {[%clk 0:00:04.3]} 59. Kxh5
{[%clk 0:00:17.2]} 59... Rf2 {[%clk 0:00:04.9]} 60. g4 {[%clk 0:00:17.6]} 60...
Rf8 {[%clk 0:00:05.4]} 61. g5 {[%clk 0:00:17.1]} 61... a4 {[%clk 0:00:06.4]} 62.
g6 {[%clk 0:00:17.7]} 62... hxg6+ {[%clk 0:00:07.1]} 63. Kxg6 {[%clk 0:00:19.6]}
63... Rg8+ {[%clk 0:00:04.8]} 64. Bxg8 {[%clk 0:00:17.4]} 64... Kxg8 {[%clk
0:00:06.7]} 65. Rb8+ {[%clk 0:00:18.3]} 65... Bf8 {[%clk 0:00:07.1]} 66. Ra8
{[%clk 0:00:18.7]} 66... a3 {[%clk 0:00:08.1]} 67. Kf6 {[%clk 0:00:19.7]} 67...
a2 {[%clk 0:00:08]} 68. Rxa2 {[%clk 0:00:18.1]} 68... Bc5 {[%clk 0:00:09.5]} 69.
Ra7 {[%clk 0:00:17.1]} 69... Bd4+ {[%clk 0:00:09.6]} 70. Ke6 {[%clk 0:00:17.5]}
70... Kf8 {[%clk 0:00:10.9]} 71. Kd5 {[%clk 0:00:18.3]} 71... Bc5 {[%clk
0:00:10.6]} 72. Kc6 {[%clk 0:00:19.8]} 72... Ke8 {[%clk 0:00:11]} 73. Rb7 {[%clk
0:00:19.4]} 73... Kd8 {[%clk 0:00:12]} 74. Rxb6 {[%clk 0:00:20.2]} 74... Bxb6
{[%clk 0:00:13.4]} 75. Kxb6 {[%clk 0:00:22.1]} 75... Kc8 {[%clk 0:00:13.9]} 76.
Kc6 {[%clk 0:00:23.6]} 76... Kb8 {[%clk 0:00:15.3]} 77. Kd7 {[%clk 0:00:24.6]}
77... Kb7 {[%clk 0:00:16.5]} 78. c5 {[%clk 0:00:26.1]} 78... Kb8 {[%clk
0:00:17.5]} 79. c6 {[%clk 0:00:28]} 79... Ka7 {[%clk 0:00:18.4]} 80. c7 {[%clk
0:00:29.5]} 1-0

[Event "*** MasterClass Titled Tuesday Blitz"]
[Site "Chess.com"]
[Date "2017.12.05"]
[Round "10"]
[White "Grebeniuk-S"]
[Black "JSPrepz"]
[Result "1/2-1/2"]
[WhiteElo "2402"]
[BlackElo "2559"]
[TimeControl "180+2"]
[EndTime "16:38:10 PST"]
[Termination "Game drawn by 50-move rule"]

1. d4 {[%clk 0:03:01.9]} 1... Nf6 {[%clk 0:03:00.8]} 2. Nf3 {[%clk 0:03:02.7]}
2... c5 {[%clk 0:03:01.5]} 3. e3 {[%clk 0:03:02.9]} 3... g6 {[%clk 0:03:02.3]}
4. b3 {[%clk 0:03:02.9]} 4... Bg7 {[%clk 0:03:03.5]} 5. Bb2 {[%clk 0:03:04.5]}
5... O-O {[%clk 0:03:02.7]} 6. dxc5 {[%clk 0:03:04.5]} 6... Qa5+ {[%clk
0:03:02.7]} 7. Nbd2 {[%clk 0:03:04.9]} 7... Qxc5 {[%clk 0:02:57.5]} 8. c4 {[%clk
0:03:02.3]} 8... Nc6 {[%clk 0:02:57.8]} 9. Be2 {[%clk 0:03:02.3]} 9... d6 {[%clk
0:02:58.9]} 10. O-O {[%clk 0:03:03.4]} 10... e5 {[%clk 0:03:00.3]} 11. a3 {[%clk
0:03:03.5]} 11... Qa5 {[%clk 0:03:00.7]} 12. b4 {[%clk 0:03:03.9]} 12... Qc7
{[%clk 0:03:00.9]} 13. Rc1 {[%clk 0:03:01.6]} 13... a5 {[%clk 0:02:58.1]} 14. b5
{[%clk 0:02:59]} 14... Nd8 {[%clk 0:02:57]} 15. c5 {[%clk 0:02:57.9]} 15... dxc5
{[%clk 0:02:51.5]} 16. Bxe5 {[%clk 0:02:53.2]} 16... Qd7 {[%clk 0:02:49.7]} 17.
Rxc5 {[%clk 0:02:30.9]} 17... Ne6 {[%clk 0:02:50.2]} 18. Rc1 {[%clk 0:02:28]}
18... Qe7 {[%clk 0:02:41.8]} 19. Nc4 {[%clk 0:02:26.9]} 19... Rd8 {[%clk
0:02:42.7]} 20. Qc2 {[%clk 0:02:13.6]} 20... Ng4 {[%clk 0:02:35]} 21. Bxg7
{[%clk 0:02:12.4]} 21... Kxg7 {[%clk 0:02:36.4]} 22. Nb6 {[%clk 0:02:07.9]}
22... Rb8 {[%clk 0:02:37.5]} 23. a4 {[%clk 0:01:59.2]} 23... Qd6 {[%clk
0:02:35.3]} 24. Nc4 {[%clk 0:01:54.6]} 24... Qc7 {[%clk 0:02:33.8]} 25. h3
{[%clk 0:01:55.1]} 25... Nf6 {[%clk 0:02:34.6]} 26. Qb2 {[%clk 0:01:47.4]} 26...
Qe7 {[%clk 0:02:32.7]} 27. Nxa5 {[%clk 0:01:47.9]} 27... Bd7 {[%clk 0:02:31.5]}
28. Nc4 {[%clk 0:01:48.3]} 28... Rbc8 {[%clk 0:02:31.4]} 29. Nb6 {[%clk
0:01:48.7]} 29... Rxc1 {[%clk 0:02:32]} 30. Rxc1 {[%clk 0:01:50.6]} 30... Be8
{[%clk 0:02:33.5]} 31. Nc4 {[%clk 0:01:40.7]} 31... h6 {[%clk 0:02:33.6]} 32.
Nce5 {[%clk 0:01:40.6]} 32... Kg8 {[%clk 0:02:33.2]} 33. a5 {[%clk 0:01:40.6]}
33... Ne4 {[%clk 0:02:24]} 34. a6 {[%clk 0:01:38.4]} 34... bxa6 {[%clk 0:02:25]}
35. Nc6 {[%clk 0:01:39.8]} 35... Bxc6 {[%clk 0:02:23.9]} 36. bxc6 {[%clk
0:01:41.6]} 36... N6c5 {[%clk 0:02:23.1]} 37. Nd4 {[%clk 0:01:36.7]} 37... Qf6
{[%clk 0:02:21.4]} 38. Bf1 {[%clk 0:01:28.7]} 38... Na4 {[%clk 0:02:20.6]} 39.
Qc2 {[%clk 0:01:25]} 39... Nac3 {[%clk 0:02:20.8]} 40. f3 {[%clk 0:01:19.2]}
40... Qg5 {[%clk 0:02:14]} 41. fxe4 {[%clk 0:01:13.8]} 41... Qxe3+ {[%clk
0:02:14.8]} 42. Kh1 {[%clk 0:01:15.4]} 42... Nxe4 {[%clk 0:02:16]} 43. Nf3
{[%clk 0:00:42.8]} 43... Qf4 {[%clk 0:01:42.9]} 44. c7 {[%clk 0:00:32.3]} 44...
Rc8 {[%clk 0:01:42.5]} 45. Re1 {[%clk 0:00:24]} 45... Ng3+ {[%clk 0:01:39.4]}
46. Kg1 {[%clk 0:00:24.9]} 46... Rxc7 {[%clk 0:01:38.5]} 47. Qf2 {[%clk
0:00:25.8]} 47... Nf5 {[%clk 0:01:35.5]} 48. Ne5 {[%clk 0:00:25.9]} 48... Qb4
{[%clk 0:01:33]} 49. Bxa6 {[%clk 0:00:24.5]} 49... Re7 {[%clk 0:01:29.1]} 50.
Bd3 {[%clk 0:00:24]} 50... Nd4 {[%clk 0:01:28.3]} 51. Re4 {[%clk 0:00:19.4]}
51... Qd6 {[%clk 0:01:08.2]} 52. Qxd4 {[%clk 0:00:19.6]} 52... Qxd4+ {[%clk
0:01:09.4]} 53. Rxd4 {[%clk 0:00:21.5]} 53... Rxe5 {[%clk 0:01:11.3]} 54. Kf2
{[%clk 0:00:22.4]} 54... Kg7 {[%clk 0:01:12.3]} 55. Bc4 {[%clk 0:00:23.2]} 55...
Re7 {[%clk 0:01:13.1]} 56. Be2 {[%clk 0:00:23.2]} 56... h5 {[%clk 0:01:14.3]}
57. Bf3 {[%clk 0:00:24.5]} 57... Rc7 {[%clk 0:01:15.6]} 58. Rd2 {[%clk
0:00:24.8]} 58... Ra7 {[%clk 0:01:16.4]} 59. Rb2 {[%clk 0:00:26.2]} 59... Rc7
{[%clk 0:01:16.5]} 60. Rb7 {[%clk 0:00:27.6]} 60... Rc5 {[%clk 0:01:18.2]} 61.
Ke3 {[%clk 0:00:27.9]} 61... Re5+ {[%clk 0:01:19]} 62. Kd4 {[%clk 0:00:28.7]}
62... Rf5 {[%clk 0:01:20.6]} 63. Be4 {[%clk 0:00:29.2]} 63... Rf4 {[%clk
0:01:20.9]} 64. Ke5 {[%clk 0:00:29.8]} 64... Rf6 {[%clk 0:01:21.7]} 65. Bd5
{[%clk 0:00:30.7]} 65... Rf5+ {[%clk 0:01:23.1]} 66. Ke4 {[%clk 0:00:31.4]}
66... Rf2 {[%clk 0:01:23.3]} 67. Ke3 {[%clk 0:00:30.8]} 67... Rf5 {[%clk
0:01:24.1]} 68. Be4 {[%clk 0:00:28.5]} 68... Rf6 {[%clk 0:01:25.4]} 69. Rd7
{[%clk 0:00:28.3]} 69... Ra6 {[%clk 0:01:24.5]} 70. Bd5 {[%clk 0:00:27.5]} 70...
Rf6 {[%clk 0:01:26.1]} 71. g3 {[%clk 0:00:28.6]} 71... Rf5 {[%clk 0:01:26.8]}
72. g4 {[%clk 0:00:27.7]} 72... hxg4 {[%clk 0:01:27.7]} 73. hxg4 {[%clk
0:00:29.6]} 73... Rf1 {[%clk 0:01:28]} 74. Bf3 {[%clk 0:00:27.5]} 74... Re1+
{[%clk 0:01:28.8]} 75. Kf4 {[%clk 0:00:28.7]} 75... Re6 {[%clk 0:01:29.2]} 76.
g5 {[%clk 0:00:29]} 76... Re1 {[%clk 0:01:28.4]} 77. Ra7 {[%clk 0:00:28.1]}
77... Rf1 {[%clk 0:01:29.4]} 78. Kg3 {[%clk 0:00:28.6]} 78... Re1 {[%clk
0:01:28.6]} 79. Bd5 {[%clk 0:00:27.3]} 79... Rf1 {[%clk 0:01:27.6]} 80. Bf3
{[%clk 0:00:27.3]} 80... Re1 {[%clk 0:01:28.7]} 81. Ra4 {[%clk 0:00:28.2]} 81...
Re5 {[%clk 0:01:29.6]} 82. Kf4 {[%clk 0:00:28.3]} 82... Rf5+ {[%clk 0:01:29.5]}
83. Kg4 {[%clk 0:00:29.7]} 83... Re5 {[%clk 0:01:31]} 84. Rf4 {[%clk 0:00:31]}
84... Ra5 {[%clk 0:01:29.5]} 85. Bc6 {[%clk 0:00:30.6]} 85... Re5 {[%clk
0:01:29.3]} 86. Re4 {[%clk 0:00:30.5]} 86... Rc5 {[%clk 0:01:29.9]} 87. Be8
{[%clk 0:00:30.6]} 87... Rf5 {[%clk 0:01:29]} 88. Bd7 {[%clk 0:00:29.4]} 88...
Rd5 {[%clk 0:01:27.5]} 89. Bc6 {[%clk 0:00:30.7]} 89... Rd6 {[%clk 0:01:28.3]}
90. Rc4 {[%clk 0:00:31.7]} 90... Rd1 {[%clk 0:01:29]} 91. Rc5 {[%clk 0:00:31.9]}
91... Rg1+ {[%clk 0:01:29.7]} 92. Kf4 {[%clk 0:00:33.4]} 92... Rf1+ {[%clk
0:01:30.2]} 93. Ke4 {[%clk 0:00:34.3]} 93... Re1+ {[%clk 0:01:30.7]} 94. Kd5
{[%clk 0:00:34.8]} 94... Re3 {[%clk 0:01:29.4]} 95. Kd6 {[%clk 0:00:34.8]} 95...
f6 {[%clk 0:01:27.5]} 96. gxf6+ {[%clk 0:00:33.5]} 96... Kxf6 {[%clk 0:01:29.4]}
97. Bd5 {[%clk 0:00:31.2]} 97... g5 {[%clk 0:01:28.9]} 98. Rc7 {[%clk
0:00:32.5]} 98... g4 {[%clk 0:01:29.4]} 99. Rf7+ {[%clk 0:00:33.3]} 99... Kg5
{[%clk 0:01:30.8]} 100. Rf8 {[%clk 0:00:34]} 100... g3 {[%clk 0:01:29.1]} 101.
Rg8+ {[%clk 0:00:35.1]} 101... Kf4 {[%clk 0:01:30.2]} 102. Rf8+ {[%clk
0:00:35.3]} 102... Kg4 {[%clk 0:01:31.7]} 103. Be6+ {[%clk 0:00:34.5]} 103...
Kg5 {[%clk 0:01:32.2]} 104. Rg8+ {[%clk 0:00:35.2]} 104... Kf4 {[%clk
0:01:32.9]} 105. Bd5 {[%clk 0:00:36]} 105... Re1 {[%clk 0:01:29.2]} 106. Kc5
{[%clk 0:00:35.8]} 106... Rc1+ {[%clk 0:01:28.3]} 107. Kd6 {[%clk 0:00:36.3]}
107... Re1 {[%clk 0:01:28.9]} 108. Rg7 {[%clk 0:00:37.4]} 108... Rd1 {[%clk
0:01:26.1]} 109. Ke6 {[%clk 0:00:38]} 109... Re1+ {[%clk 0:01:27]} 110. Kd6
{[%clk 0:00:38]} 110... Rd1 {[%clk 0:01:28.2]} 111. Rf7+ {[%clk 0:00:39.6]}
111... Kg5 {[%clk 0:01:26.8]} 112. Ke5 {[%clk 0:00:40.1]} 112... Re1+ {[%clk
0:01:12.4]} 113. Be4 {[%clk 0:00:41]} 113... Kg4 {[%clk 0:01:11]} 114. Rg7+
{[%clk 0:00:40.1]} 114... Kh3 {[%clk 0:01:00.6]} 115. Kf4 {[%clk 0:00:40.2]}
115... Kh2 {[%clk 0:01:00.1]} 116. Bf3 {[%clk 0:00:18.5]} 116... Kg1 {[%clk
0:00:18.3]} 117. Kxg3 {[%clk 0:00:15.5]} 117... Re8 {[%clk 0:00:12.2]} 118. Rh7
{[%clk 0:00:16.1]} 118... Rg8+ {[%clk 0:00:12.3]} 119. Bg4 {[%clk 0:00:17.6]}
119... Rf8 {[%clk 0:00:09.5]} 120. Rd7 {[%clk 0:00:17.7]} 120... Rf6 {[%clk
0:00:08.9]} 121. Rd1+ {[%clk 0:00:17.7]} 121... Rf1 {[%clk 0:00:09]} 122. Rd2
{[%clk 0:00:19.1]} 122... Rf8 {[%clk 0:00:09.7]} 123. Ra2 {[%clk 0:00:19.5]}
123... Rf7 {[%clk 0:00:10.6]} 124. Bf3 {[%clk 0:00:18]} 124... Rg7+ {[%clk
0:00:12]} 125. Kf4 {[%clk 0:00:19]} 125... Rf7+ {[%clk 0:00:13.5]} 126. Ke3
{[%clk 0:00:20.3]} 126... Re7+ {[%clk 0:00:15]} 127. Be4 {[%clk 0:00:21.8]}
127... Re8 {[%clk 0:00:13]} 128. Rg2+ {[%clk 0:00:23.1]} 128... Kf1 {[%clk
0:00:14]} 129. Rh2 {[%clk 0:00:24.5]} 129... Rg8 {[%clk 0:00:13.6]} 130. Bf3
{[%clk 0:00:24.4]} 130... Re8+ {[%clk 0:00:14.4]} 131. Be4 {[%clk 0:00:25.6]}
131... Rg8 {[%clk 0:00:15.5]} 132. Rh1+ {[%clk 0:00:27.1]} 132... Rg1 {[%clk
0:00:15]} 133. Rh2 {[%clk 0:00:23.5]} 133... Rg8 {[%clk 0:00:16.1]} 134. Bd5
{[%clk 0:00:18]} 134... Rg7 {[%clk 0:00:16.8]} 135. Kf3 {[%clk 0:00:16.4]}
135... Kg1 {[%clk 0:00:16.2]} 136. Ra2 {[%clk 0:00:16.7]} 136... Rg5 {[%clk
0:00:14.3]} 137. Be4 {[%clk 0:00:17.5]} 137... Rg7 {[%clk 0:00:14.9]} 138. Ke3
{[%clk 0:00:17.8]} 138... Rf7 {[%clk 0:00:11.6]} 139. Ra1+ {[%clk 0:00:18.8]}
139... Rf1 {[%clk 0:00:12.1]} 140. Ra2 {[%clk 0:00:20.3]} 140... Rf7 {[%clk
0:00:13.7]} 141. Rg2+ {[%clk 0:00:21.3]} 141... Kf1 {[%clk 0:00:15.1]} 142. Rg6
{[%clk 0:00:22.1]} 142... Rf8 {[%clk 0:00:15.7]} 143. Bc6 {[%clk 0:00:22.8]}
143... Ke1 {[%clk 0:00:15.2]} 144. Rg1+ {[%clk 0:00:22.7]} 144... Rf1 {[%clk
0:00:16.4]} 145. Rg2 {[%clk 0:00:24.4]} 145... Rf6 {[%clk 0:00:16.4]} 146. Bd5
{[%clk 0:00:25.3]} 146... Rf5 {[%clk 0:00:17.2]} 147. Be4 {[%clk 0:00:23.9]}
147... Rf6 {[%clk 0:00:17.5]} 148. Rh2 {[%clk 0:00:24.3]} 148... Rf7 {[%clk
0:00:17.9]} 149. Bd3 {[%clk 0:00:25.5]} 149... Re7+ {[%clk 0:00:18.9]} 150. Kd4
{[%clk 0:00:27.1]} 150... Rd7+ {[%clk 0:00:20]} 151. Kc3 {[%clk 0:00:28.5]}
151... Rc7+ {[%clk 0:00:20.1]} 152. Bc4 {[%clk 0:00:30]} 152... Rd7 {[%clk
0:00:16.8]} 153. Re2+ {[%clk 0:00:31.2]} 153... Kd1 {[%clk 0:00:18.3]} 154. Rf2
{[%clk 0:00:28.2]} 154... Re7 {[%clk 0:00:19.6]} 155. Bd3 {[%clk 0:00:29.1]}
155... Rc7+ {[%clk 0:00:20.4]} 156. Bc4 {[%clk 0:00:30.4]} 156... Re7 {[%clk
0:00:21.4]} 157. Rh2 {[%clk 0:00:29.3]} 157... Re8 {[%clk 0:00:21.9]} 158. Bb5
{[%clk 0:00:25.6]} 158... Re7 {[%clk 0:00:22.4]} 159. Kb3 {[%clk 0:00:26.9]}
159... Ke1 {[%clk 0:00:23.1]} 160. Bd3 {[%clk 0:00:27.7]} 160... Re8 {[%clk
0:00:22.7]} 161. Ra2 {[%clk 0:00:27.4]} 161... Re7 {[%clk 0:00:22.9]} 162. Kc3
{[%clk 0:00:28.5]} 162... Re8 {[%clk 0:00:21.2]} 163. Bb5 {[%clk 0:00:29.2]}
163... Re7 {[%clk 0:00:22.3]} 164. Kd4 {[%clk 0:00:27.3]} 164... Re6 {[%clk
0:00:22.3]} 165. Bc4 {[%clk 0:00:28]} 165... Re7 {[%clk 0:00:23.1]} 166. Rh2
{[%clk 0:00:28.3]} 166... Re8 {[%clk 0:00:20.9]} 167. Bd5 {[%clk 0:00:24.3]}
167... Re7 {[%clk 0:00:21.8]} 1/2-1/2